Cogmind - Beta 13 @@@ ROGUE MODE // 2024.03.24 @ 23:56:26 Player: Ether Result: Destroyed by G-47 Trooper with Particle Gun Performance ------------- Evolutions (2) 1000 Regions Visited (3) 600 Robots Destroyed (42) 210 Value Destroyed (875) 875 Prototype IDs (0) 0 Alien Tech Used (0) 0 Bonus (0) 0 TOTAL SCORE: 2685 Bonus ------- None Cogmind --------- Core Integrity 0/550 Matter 266/300 Energy 99/100 System Corruption 0% Temperature Cool (9) Movement Core (50) Location -8/Materials Parts ------- > --- POWER (2) -------- (None) > --- PROPULSION (3) --- (None) > --- UTILITY (4) ------ Improved Sensor Array Melee Analysis Suite > --- WEAPON (2) ------- Improved Datajack > --- INVENTORY (5) ---- Carbon-fiber Leg Improved Carbon-fiber Leg Shock Rifle Remote Datajack Peak State ------------ > --- POWER ------------ Light Ion Engine Light Deuterium Engine > --- PROPULSION ------- Improved Carbon-fiber Leg Improved Carbon-fiber Leg Improved Carbon-fiber Leg > --- UTILITY ---------- Advanced Heat Sink Trap Scanner Subdweller Optics Signal Interpreter > --- WEAPON ----------- Light Assault Rifle Minigun > --- INVENTORY -------- Titanium Leg Advanced Weight Redist. System Advanced Weight Redist. System Datajack Improved Datajack [Rating: 32] Favorites ----------- Power Ion Engine Engine Ion Engine Propulsion Aluminum Leg Leg Aluminum Leg Utility Small Storage Unit Device Improved Terrain Scanner Storage Small Storage Unit Processor Signal Interpreter Weapon Assault Rifle Energy Gun EM Pulse Gun Ballistic Gun Assault Rifle Special Melee Weapon Datajack Build | -11 -10 -10 -8 ------- Run | Yrd Mat Sub Mat Slots Evolved 4 | . . . 4 Power 1 | . . . 1 Propulsion 1 | . . . 1 Utility 2 | . . . 2 Weapon . | . . . . Parts Attached 44 | 7 6 6 25 Power 6 | 1 1 . 4 Engine 6 | 1 1 . 4 Core . | . . . . Reactor . | . . . . Propulsion 14 | 2 2 1 9 Treads . | . . . . Leg 14 | 2 2 1 9 Wheel . | . . . . Hover . | . . . . Flight . | . . . . Utility 10 | 2 1 . 7 Device 6 | 1 . . 5 Storage 1 | 1 . . . Processor 3 | . 1 . 2 Hackware . | . . . . Protection . | . . . . Artifact . | . . . . Weapon 14 | 2 2 5 5 Energy Gun 6 | 2 . 4 . Energy Cannon . | . . . . Ballistic Gun 6 | . 2 . 4 Ballistic Cannon . | . . . . Launcher . | . . . . Special Weapon . | . . . . Impact Weapon . | . . . . Slashing Weapon . | . . . . Piercing Weapon . | . . . . Special Melee Weapon 2 | . . 1 1 Unidentified Prototypes . | . . . . Parts Lost 21 | . 2 5 14 Power 4 | . . 1 3 Propulsion 6 | . . 3 3 Utility 4 | . . . 4 Weapon 7 | . 2 1 4 Highest Loss Streak 6 | . 2 4 6 To Critical Strikes . | . . . . Average Slot Usage (%) 92 | . 99 98 69 Engine 13 | . 14 13 10 Leg 25 | . 28 26 17 Device 9 | . 10 . 15 Storage 11 | . 14 14 2 Processor 7 | . 3 14 11 Energy Gun 5 | . 7 4 . Ballistic Gun 18 | . 20 22 11 Naked Turns 36 | . . . 36 Heaviest Build 18 | 13 15 18 18 Greatest Support 54 | 20 20 20 54 Greatest Overweight (x) 4 | 2 . 4 3 Average Overweight (x) . | . . . . Largest Inventory Capacity 8 | 8 8 8 8 Average Capacity 7 | 7 8 8 5 Most Carried 8 | 7 8 8 7 Average Carried 6 | 4 7 7 4 Final Capacity 8 | 8 8 8 5 Final Carried 8 | 7 8 8 4 Class Distribution -------------------- 88% | Mutant 11% | Scavenger-Mutant Dominant Class ---------------- Mutant | -10/Materials Mutant | -10/Subcaves Scavenger-Mutant | -8/Materials Resources | -11 -10 -10 -8 ----------- Run | Yrd Mat Sub Mat Matter Collected 1062 | 270 108 206 478 Remotely . | . . . . Salvage Created 1220 | 148 409 191 472 Parts 87 | 9 32 8 38 Haulers Intercepted . | . . . . Recyclers Shooed 1 | . . . 1 Parts Field Recycled . | . . . . Retrieved Matter . | . . . . Parts Self-Destructed 7 | . . 7 . Prevented . | . . . . Kills | -11 -10 -10 -8 ------- Run | Yrd Mat Sub Mat Combat Hostiles Destroyed 33 | . 12 5 16 Guns 32 | . 11 5 16 AOE 1 | . 1 . . Classes Destroyed 8 | 2 4 1 1 Worker 1 | . 1 . . Tunneler 3 | 3 . . . Recycler 2 | 1 1 . . Watcher 3 | . 3 . . Swarmer 19 | . 9 . 10 Grunt 7 | . 3 . 4 Sentry 2 | . . . 2 Subdweller 5 | . . 5 . Best Kill Streak 6 | 2 5 2 6 Combat Bots Only 6 | . 4 2 6 Max Kills in Single Turn 2 | 1 2 1 2 Gunslinging 1 | . . . 1 Exploded 1 | . 1 . . Melee . | . . . . Uniques/NPCs Destroyed . | . . . . Combat | -11 -10 -10 -8 -------- Run | Yrd Mat Sub Mat Hostile Shots Fired 263 | . 30 58 175 Missed 78 | . 8 24 46 Damage Taken 2911 | . 236 751 1924 Core 701 | . 54 90 557 Absorbed by Shields . | . . . . Regen/Repaired (Parts) 100 | . 63 . 37 Core Remaining (%) 71 | 100 . 42 . Volleys Fired 129 | 13 34 30 52 Largest 2 | 2 2 2 2 Hottest 120 | 80 80 120 50 Shots Fired 250 | 26 66 60 98 Gun 250 | 26 66 60 98 Cannon . | . . . . Launcher . | . . . . Special . | . . . . Kinetic 172 | . 16 58 98 Thermal 2 | . . 2 . Explosive . | . . . . Electromagnetic 76 | 26 50 . . Robot Hit Streak 10 | 5 5 10 9 Robot Miss Streak 4 | 4 4 2 4 Penetration Max . | . . . . Secondary Targets 3 | . . 1 2 Max Gunslinging Chain 1 | . . 1 1 Shots Hit Robots 154 | 14 32 44 64 Core Hits 67 | 5 20 12 30 Critical Kills . | . . . . Critical Parts Destroyed . | . . . . Critical Strikes 2 | 1 1 . . Corrupt 2 | 1 1 . . Melee Attacks 5 | . . 5 . Impact . | . . . . Slashing . | . . . . Piercing . | . . . . Sneak Attacks . | . . . . Combat Hostiles . | . . . . Follow-up Attacks . | . . . . Damage Inflicted 2258 | 202 471 502 1083 Guns 2184 | 202 397 502 1083 Cannons . | . . . . Explosions 74 | . 74 . . Melee . | . . . . Ramming . | . . . . Kinetic 1668 | . 102 483 1083 Thermal 93 | . 74 19 . Explosive . | . . . . Electromagnetic 497 | 202 295 . . Impact . | . . . . Slashing . | . . . . Piercing . | . . . . Highest Corruption . | . . . . Average Corruption . | . . . . Corruption Purged . | . . . . Corruption Blocked . | . . . . Overload Shots . | . . . . Overflow Damage 17 | . 17 . . Projectiles . | . . . . Explosions 17 | . 17 . . Melee . | . . . . Knockbacks . | . . . . Impact . | . . . . Kinetic . | . . . . Secondary . | . . . . Self-Inflicted Damage 32 | . 32 . . Shots 1 | . 1 . . Rammed . | . . . . Targets Rammed . | . . . . Kicked . | . . . . Crushed . | . . . . Highest Temperature 144 | 36 144 18 65 Average Temperature 32 | 8 47 12 24 Received Heat Transfer 996 | . . 177 819 Siege Activations . | . . . . Robots Corrupted . | . . . . Combat Hostiles . | . . . . Parts Fried 2 | 2 . . . Impact Corruptions . | . . . . Robots Melted . | . . . . Combat Hostiles . | . . . . Parts Melted 4 | . . 4 . Heat Transferred 125 | . 100 25 . Parts Sabotaged . | . . . . Parts Stolen . | . . . . Parts Stripped . | . . . . Power Chain Reactions 1 | . 1 . . Alert | -11 -10 -10 -8 ------- Run | Yrd Mat Sub Mat Peak Influence 376 | 20 208 . 376 Initial 13 | . 13 . . Average 97 | 13 74 . 188 Maximum Alert Level 1 | . 1 . 1 Low Security (%) 77 | 100 90 . 34 Level 1 22 | . 9 . 65 Level 2 . | . . . . Level 3 . | . . . . Level 4 . | . . . . Level 5 . | . . . . High Security . | . . . . Max Security . | . . . . Squads Dispatched 2 | . . . 2 Investigation . | . . . . Extermination . | . . . . Reinforcement 2 | . . . 2 Assault . | . . . . Garrison . | . . . . Intercept . | . . . . Searches Triggered . | . . . . Construction Impeded . | . . . . Haulers Reinforced . | . . . . Active Scanning Responses . | . . . . Cargo Convoy Interrupts . | . . . . Stealth | -11 -10 -10 -8 --------- Run | Yrd Mat Sub Mat Distress Signals 3 | . . . 3 Communications Jammed . | . . . . Distress Signals . | . . . . Times Spotted 71 | . 19 9 43 Peak Tracking Total 8 | . 5 3 8 Tactical Retreats 9 | . . . 9 Traps | -11 -10 -10 -8 ------- Run | Yrd Mat Sub Mat Traps Triggered 3 | . 1 . 2 Indirectly . | . . . . Trap Hack Attempts . | . . . . Triggered . | . . . . Disarmed . | . . . . Reprogrammed . | . . . . Reused . | . . . . Traps Extracted . | . . . . Installed . | . . . . Triggered . | . . . . Machines | -11 -10 -10 -8 ---------- Run | Yrd Mat Sub Mat Machines Disabled 2 | . 1 . 1 Max in Single Turn 1 | . 1 . 1 Machines Repaired . | . . . . Machines Dismantled . | . . . . Machines Sabotaged . | . . . . Overloaded Fab Kills . | . . . . Hacking | -11 -10 -10 -8 --------- Run | Yrd Mat Sub Mat Machines Accessed 12 | . 8 . 4 Terminals 8 | . 6 . 2 Fabricators . | . . . . Repair Stations 2 | . 1 . 1 Recycling Units 1 | . 1 . . Scanalyzers . | . . . . Garrison Access 1 | . . . 1 Total Hacks 44 | . 29 . 15 Successful 25 | . 18 . 7 Failed 19 | . 11 . 8 Catastrophic . | . . . . Database Lockouts . | . . . . Manual . | . . . . Terminals 29 | . 19 . 10 Fabricators . | . . . . Repair Stations 8 | . 6 . 2 Recycling Units 4 | . 4 . . Scanalyzers . | . . . . Garrison Access 3 | . . . 3 Terminal Hacks 14 | . 9 . 5 Record 3 | . . . 3 Robot Analysis 1 | . 1 . . Emergency Access Points 4 | . 3 . 1 Alert Level 2 | . 1 . 1 Locate Traps 1 | . 1 . . Dispatch Records 1 | . 1 . . Zone Layout 2 | . 2 . . Fabricator Hacks . | . . . . Repair Station Hacks 8 | . 6 . 2 Scan Component 4 | . 3 . 1 Repair 4 | . 3 . 1 Recycling Unit Hacks 3 | . 3 . . Report Inventory 1 | . 1 . . Retrieve Components 2 | . 2 . . Scanalyzer . | . . . . Garrison Access Hacks . | . . . . Unauthorized Hacks . | . . . . Terminals . | . . . . Fabricators . | . . . . Repair Stations . | . . . . Recycling Units . | . . . . Scanalyzers . | . . . . Garrison Access . | . . . . Data Cores Recovered . | . . . . Used . | . . . . Hacking Detections 11 | . 8 . 3 Full Trace Events 2 | . . . 2 Feedback Events . | . . . . Feedback Blocked . | . . . . Robot Schematics Acquired . | . . . . Robots Built . | . . . . Authchips . | . . . . Time . | . . . . Total Robot Build Rating . | . . . . Part Schematics Acquired . | . . . . Parts Built . | . . . . Authchips . | . . . . Time . | . . . . Total Part Build Rating . | . . . . Parts Repaired 4 | . 3 . 1 Time 110 | . 78 . 32 Parts Recycled . | . . . . Recycled Matter . | . . . . Retrieved Matter . | . . . . Retrieved Components 3 | . 3 . . Parts Scanalyzed . | . . . . Part Schematics Acquired . | . . . . Parts Damaged . | . . . . Bothacking | -11 -10 -10 -8 ------------ Run | Yrd Mat Sub Mat Used RIF Installer . | . . . . Robots Hacked . | . . . . Non-combat . | . . . . Combat . | . . . . Robot Hacks Applied . | . . . . Relay Couplers Released . | . . . . Fabnet Peak Effective % . | . . . . Robots Rewired . | . . . . Allies Hacked . | . . . . Hacks Repelled . | . . . . Allies | -11 -10 -10 -8 -------- Run | Yrd Mat Sub Mat Total Allies . | . . . . Largest Group . | . . . . Highest-Rated Group . | . . . . Highest-Rated Ally . | . . . . Total Orders . | . . . . Ally Attacks . | . . . . Total Damage . | . . . . Kills . | . . . . Allies Corrupted . | . . . . Allies Melted . | . . . . Intel | -11 -10 -10 -8 ------- Run | Yrd Mat Sub Mat Robot Analysis Total 1 | . 1 . . Derelict Logs Recovered . | . . . . Drone Launches . | . . . . Drone Recoveries . | . . . . Exploration | -11 -10 -10 -8 ------------- Run | Yrd Mat Sub Mat Turns Passed 3326 | 308 1758 528 732 Spaces Moved 2060 | 204 1097 339 420 Core 137 | 6 . 4 127 Treads . | . . . . Legs 1923 | 198 1097 335 293 Wheels . | . . . . Hover . | . . . . Flight . | . . . . Fastest Speed 50 | 50 120 120 50 Average Speed 118 | 119 120 122 112 Slowest Speed 250 | 150 120 250 200 Overloaded Moves . | . . . . Propulsion Burnouts . | . . . . Robots Hopped . | . . . . Cave-ins Triggered . | . . . . Exploration Rate (%) 41 | 10 97 14 44 Regions Visited 3 Branch Regions 1 Pre-discovered Areas . | . . . . Known Exits Taken 2 | . 1 1 . Unknown Exits Taken 1 | 1 . . . Scrap Searched 4 | . . 4 . Spaces Dug . | . . . . Terrain Destroyed 4 | . 4 . . Melee . | . . . . Projectile . | . . . . AOE 4 | . 4 . . Terrain Rammed . | . . . . Walls Destroyed . | . . . . Machines Disabled . | . . . . Actions | -11 -10 -10 -8 --------- Run | Yrd Mat Sub Mat Total 2707 | 240 1479 387 601 Wait 398 | 7 310 4 77 Move 2057 | 203 1096 338 420 Hop . | . . . . Pick Up 43 | 9 19 2 13 Fast Attach 17 | 6 . 1 10 Attach 15 | 1 4 1 9 Detach 1 | . . . 1 Swap 12 | . 2 4 6 Drop 30 | 1 14 2 13 Fire 129 | 13 34 30 52 Melee 5 | . . 5 . Ram . | . . . . Kick . | . . . . Crush . | . . . . Escape Stasis . | . . . . Rewire . | . . . . Trap . | . . . . Miscellaneous . | . . . . Route ------- -11/Scrapyard -10/Materials (discovered 6 exits: [*Mat x3] / *Min x2 / *Sub) -10/Subcaves (discovered 2 exits: *Mat x2) -8/Materials (discovered 2 exits: *Sto x2) History --------- Turn | Location | Event 7 | -11/Scrapyard | Discovered new exit (range 14) 309 | -11/Scrapyard | Entered Materials 310 | -10/Materials | Build established: Mutant 444 | -10/Materials | Discovered new exit (range 10) 490 | -10/Materials | Discovered new exit (range 11) 900 | -10/Materials | Discovered new exit (range 12) 1120 | -10/Materials | Discovered new exit (range 3) 1361 | -10/Materials | Discovered new exit (range 7) 1413 | -10/Materials | Repaired Targeting Computer? 1447 | -10/Materials | Repaired Aluminum Leg 1475 | -10/Materials | Repaired Aluminum Leg 1662 | -10/Materials | Identified exit to Mines 1744 | -10/Materials | Discovered new exit (range 9) 1981 | -10/Materials | Identified exit to Subcaves 2067 | -10/Materials | Entered Subcaves 2067 | -10/Subcaves | Discovered new exit (range 7) 2075 | -10/Subcaves | Identified exit to Materials 2352 | -10/Subcaves | Discovered exit to Materials (range 12) 2436 | -10/Subcaves | Core integrity fell below 50% 2572 | -10/Subcaves | A Subdweller sparked back to life 2572 | -10/Subcaves | A Subdweller sparked back to life 2572 | -10/Subcaves | A Subdweller sparked back to life 2595 | -10/Subcaves | Entered Materials 2595 | -8/Materials | Evolved 4 slots: Power x1, Propulsion x1, Utility x2 2614 | -8/Materials | Discovered new exit (range 14) 2622 | -8/Materials | Lost 4 parts (1p2n1w) 2691 | -8/Materials | Identified exit to Storage 2836 | -8/Materials | Lost 5 parts (1p1n2u1w) 2856 | -8/Materials | Discovered exit to Storage (range 21) 2919 | -8/Materials | Repaired Sub. Optics 3104 | -8/Materials | Build established: Scavenger-Mutant 3191 | -8/Materials | Core integrity fell below 50% 3242 | -8/Materials | Lost 6 parts (2p1n1u2w) 3247 | -8/Materials | Core integrity fell below 20% 3327 | -8/Materials | Destroyed by G-47 Trooper with Particle Gun Last Messages --------------- 03244_ Imp. Carbon-fiber Leg destroyed. 03246_ Knocked back. 03251_ G-47 Trooper destroyed. 03252_ K-01 Serf collects debris. 03252_ Triggered Blade Trap. 03252_ Massive razor-sharp blades shoot up from within the floor. 03252_ Imp. Carbon-fiber Leg severed. 03252_ Sub. Optics severed. 03252_ Signal Interpreter severed. 03253_ Triggered Blade Trap. 03253_ Massive razor-sharp blades shoot up from within the floor. 03276_ Acquired Shock Rifle. 03286_ Connecting with Scanalyzer... 03288_ Acquired Melee Analysis Suite. 03297_ T-07 Excavator is excavating. 03297_ K-01 Serf collects debris. 03302_ Acquired Imp. Sensor Array. 03327_ T-07 Excavator is excavating. Map ----- +----------------------------------------------------+ | #??????????????????????? | | ###+#############?????????????? | | # # #?????????????? | | # #?????????????? | | # #?????????????? | | # #?????????????? | | # # "" "" *#?????????????? | | ## ## ""S"" * #?????????????? | | ?# ## """" #?????????????? | | ?# ## #?????????????? | | ?# ###+#+######????? ???????? | | ?# #??####### ???????? | | ?# #?? ? ???????? | | ?# #? !! # ???????? | | ?######## #?! ! # ???????? | | ?????# ## # # ???????? | | ?????? # # =# ???????? | | ??????# + """ # ####???? | | ??????# # # ! """ # ## ???? | | ??????### # """ # # t???? | | ????????# #? # ## #???? | | ??????####+######## ## #???? | | ??????# #????## #???? | | ??????# """ #######g #???? | | ??????# """"" + #???? | | ??????# """"" #######/##@##??? | | ??????# """"" #????# #??? | | ??????# """ #????#! / #??? | | #####?# #????# #??? | | "" #?# #????# #??? | | R" #?# ] [#????#* #??? | | " #?##########????# ]#??? | | #???????????????########??? | | #?????????????????????????? | | #?????????????????????????? | | ###########???????????????????? | | ##### #???????????????????? | | # ??????????????? | | [[> + ??????????????? | | =[= ! #???????????????????? | | ##### = #???????????????????? | | ????##[ =##???????????????????? | | ?????#= [#????????????????????? | | ?????#!= #????????????????????? | | ?????#!! #????????????????????? | | ?????# #????????????????????? | | ?????# #????????????????????? | | ?????# #####????????????????? | | ?????# #????????????????? | | ?????# *%= #????????????????? | +----------------------------------------------------+ Best States ------------- Heat Dissipation 50 Energy Generation 19 Energy Capacity 250 Matter Stores 300 Matter Capacity 300 Sight Range 21 Robot Scan Range 15 Terrain Scan Range 16 Terrain Scan Density 10 Evasion (%) 55 Targeting Accuracy 5 Item Schematics ----------------- None Robot Schematics ------------------ None Fabricated ------------ Nothing Alien Tech Used ----------------- None Achievements -------------- None Challenges ------------ None Game ------ Seed XenonVortexRipper Manual? 0 Play Time 00:39:00 Cumulative 16.4 hours Start 2024.03.24 @ 23:18:00 End 2024.03.24 @ 23:56:26 Sessions 1 Manual Loads 0 Difficulty Rogue Special Mode None Game No. 44 Rogue 44 Adventurer 0 Explorer 0 Win Type - Total 0 Types 0/0/0/0/0/0/0/0/0 Lore% 16 Gallery% 21 Achievement% 15 Wizard Run 0 Options --------- Layout 1 ASCII 0 Keyboard 0 Movement Numpad Keybinds 0 Fullscreen 1 Font 24/Smallcaps Map View 50x35 Zoom Use 0% Tactical HUD 1 Map Filters NONE Filters NONE Steam 1 RUN: 6acd3322-9b82-4b00-8fdf-bf5c35697ee6